bitfinex/quotes_ETHUSD_20250520
["timestamp","ask_amount","ask_price","bid_price","bid_amount"]
[1747758196080,4.03364524,2479.2,2479.1,11.329726]
[1747758196633,4.03342463,2479.3,2479.1,11.329726]
[1747758196800,4.03338837,2479.4,2479.1,11.329726]
[1747758197123,4.03341117,2479.3,2479.2,1.2145326]
[1747758197294,4.03341117,2479.3,2479.2,12.5442586]
[1747758197496,4.03341117,2479.3,2479.2,1.2145326]
[1747758197822,4.03341117,2479.3,2479.2,12.5442586]
[1747758198022,4.03341117,2479.3,2479.2,12.92835043]
[1747758198647,4.03274522,2479.8,2479.2,12.92835043]
[1747758198648,4.03274522,2479.8,2479.3,0.757]
[1747758198944,4.03323384,2479.4,2479.3,0.757]
[1747758199130,4.03323384,2479.4,2479.3,19.968726]
[1747758199817,4.03323384,2479.4,2479.3,20.35281783]
[1747758200613,4.03225568,2480.1,2479.4,8.0]
[1747758200948,4.03274589,2479.7,2479.6,0.753]
[1747758201152,4.03274589,2479.7,2479.6,29.543104]
[1747758201329,4.03274589,2479.7,2479.6,32.036477]
[1747758201512,4.03274589,2479.7,2479.6,27.380704]
[1747758201912,4.03274589,2479.7,2479.6,21.926]
[1747758202346,4.03274589,2479.7,2479.6,13.926]
[1747758202850,4.03274589,2479.7,2479.6,8.0]
[1747758203037,4.03274589,2479.7,2479.6,15.88]
[1747758203809,4.85494589,2479.7,2479.6,7.88]
[1747758204311,4.03274589,2479.7,2479.6,9.2724]
[1747758204752,4.03274589,2479.7,2479.6,22.123896]
[1747758205053,4.03274589,2479.7,2479.6,21.924]
[1747758205254,4.03274589,2479.7,2479.6,25.928]
[1747758205746,4.03274589,2479.7,2479.6,27.637]
[1747758206355,4.03274589,2479.7,2479.6,28.4017]
[1747758206670,4.03274589,2479.7,2479.6,29.744253]
[1747758206887,4.03274589,2479.7,2479.6,21.924]
[1747758207039,4.03274589,2479.7,2479.6,29.939505]
[1747758207420,4.03274589,2479.7,2479.6,28.361205]
[1747758207644,4.03274589,2479.7,2479.6,22.424]
[1747758207957,4.78904589,2479.7,2479.6,16.38]
[1747758208120,4.03274589,2479.7,2479.6,33.253726]
[1747758208560,4.03274589,2479.7,2479.6,31.06442]
[1747758208769,4.03274589,2479.7,2479.6,21.924]
[1747758208967,4.03274589,2479.7,2479.6,27.637]
[1747758209964,4.03274589,2479.7,2479.6,15.88]
[1747758211168,4.82784589,2479.7,2479.6,15.88]
[1747758212165,5.71389154,2479.7,2479.6,15.88]
[1747758212478,5.71389154,2479.7,2478.6,0.41126876]
[1747758212479,4.03437285,2478.7,2478.6,0.41126876]
[1747758212659,4.03437285,2478.7,2478.6,51.07199476]
[1747758212833,4.03437285,2478.7,2478.6,51.210726]
[1747758213036,4.03428664,2478.8,2478.7,8.0]
[1747758213236,4.03411739,2478.9,2478.7,19.329726]
[1747758213430,4.03411739,2478.9,2478.8,19.329726]
[1747758213866,4.03411739,2478.9,2478.8,19.71476555]
[1747758216175,4.03378795,2479.1,2478.9,8.796]
[1747758216380,4.81338902,2479.7,2479.1,8.0]
[1747758216577,4.81338902,2479.7,2479.2,15.88]
[1747758216578,4.03339652,2479.3,2479.2,15.88]
[1747758216891,4.03339652,2479.3,2479.2,27.209726]
[1747758217065,4.03339652,2479.3,2479.2,27.61832265]
[1747758217275,4.03339652,2479.3,2479.2,26.35536865]
[1747758218003,4.0333126,2479.4,2479.3,8.7552]
[1747758218381,4.0333126,2479.4,2479.3,0.7552]
[1747758218580,4.0333126,2479.4,2479.3,9.652515]
[1747758218780,0.827,2479.9,2479.3,20.33326006]
[1747758219081,4.0327031,2479.8,2479.6,0.55]
[1747758219278,4.0327031,2479.8,2479.7,33.862461]
[1747758219464,4.0327031,2479.8,2479.7,44.965]
[1747758219872,4.0327031,2479.8,2479.7,45.35003955]
[1747758220107,4.0327031,2479.8,2479.7,46.57165737]
[1747758220615,4.03251841,2479.9,2479.8,8.0]
[1747758221809,4.03251841,2479.9,2479.8,28.643966]
[1747758222505,4.03251841,2479.9,2479.8,29.366906]
[1747758222709,4.03251841,2479.9,2479.8,25.95194555]
[1747758222889,4.03251841,2479.9,2479.8,28.04304555]
[1747758223614,4.03251841,2479.9,2479.8,24.77817855]
[1747758224003,4.03251841,2479.9,2479.8,16.26403955]
[1747758224215,4.03251841,2479.9,2479.8,22.30803955]
[1747758224515,4.03251841,2479.9,2479.8,16.26403955]
[1747758224841,4.80511841,2479.9,2479.8,22.30803955]
[1747758225599,4.80511841,2479.9,2479.8,21.923]
[1747758225801,4.80511841,2479.9,2479.8,21.897]
[1747758226423,5.68885786,2479.9,2479.8,15.853]
[1747758226823,4.80511841,2479.9,2479.8,15.853]
[1747758228405,4.03251841,2479.9,2479.8,15.853]
[1747758231356,4.03251841,2479.9,2479.8,16.2386283]
[1747758232427,4.83931841,2479.9,2479.8,16.2386283]
[1747758232636,4.03258327,2479.8,2479.7,17.408]
[1747758232959,4.03258327,2479.8,2479.3,17.88729944]
[1747758232960,4.78953384,2479.4,2479.3,17.88729944]
[1747758233243,4.78953384,2479.4,2479.3,25.74029944]
[1747758234118,4.78953384,2479.4,2479.3,25.259]
[1747758234942,4.78953384,2479.4,2479.3,17.406]
[1747758235133,6.07508902,2479.4,2479.3,25.259]
[1747758236614,6.07508902,2479.4,2479.3,25.26]
[1747758237822,4.78953384,2479.4,2479.3,25.26]
[1747758239637,4.78953384,2479.4,2479.3,17.406]
[1747758239849,4.78953384,2479.4,2479.3,25.26]
[1747758241449,5.33953384,2479.4,2479.3,25.26]
[1747758241668,13.33953384,2479.4,2479.3,25.261]
[1747758241966,15.94313287,2479.4,2479.3,25.261]
[1747758242126,15.39313287,2479.4,2479.3,25.261]
[1747758243028,15.94313287,2479.4,2479.3,17.406]
[1747758243231,15.94313287,2479.4,2479.3,25.261]
[1747758244663,26.12313287,2479.4,2479.3,25.261]
[1747758247075,26.12313287,2479.4,2479.3,17.406]
[1747758247235,26.12313287,2479.4,2479.3,25.262]
[1747758247759,28.54313287,2479.4,2479.3,25.262]
[1747758249064,26.12313287,2479.4,2479.3,25.262]
[1747758250782,25.57313287,2479.4,2479.3,25.262]
[1747758251815,17.57313287,2479.4,2479.3,25.262]
[1747758252114,14.21323384,2479.4,2479.3,25.262]
[1747758252317,4.03323384,2479.4,2479.3,25.262]
[1747758254816,4.03323384,2479.4,2479.3,17.406]
[1747758254985,4.03323384,2479.4,2479.3,25.262]
[1747758256029,4.03323384,2479.4,2479.3,26.0316]
[1747758256210,4.03323384,2479.4,2479.3,20.77876]
[1747758256419,4.03323384,2479.4,2479.3,26.0186]
[1747758259899,4.03323384,2479.4,2479.3,17.406]
[1747758260089,4.03323384,2479.4,2479.3,25.248]
[1747758261194,4.78483384,2479.4,2479.3,25.248]
[1747758261399,6.06991902,2479.4,2479.3,25.248]
[1747758262706,6.61991902,2479.4,2479.3,25.248]
[1747758263807,14.61991902,2479.4,2479.3,25.248]
[1747758264007,21.28491902,2479.4,2479.3,7.842]
[1747758264239,4.80323562,2478.6,2478.5,17.412]
[1747758264550,4.80323562,2478.6,2478.5,25.254]
[1747758265051,5.68699975,2478.6,2478.5,17.412]
[1747758265340,13.68699975,2478.6,2478.5,25.254]
[1747758266312,8.0,2478.5,2477.7,0.7642]
[1747758266553,4.03570814,2477.9,2477.8,25.258]
[1747758268621,5.73321312,2477.9,2477.8,25.258]
[1747758268827,4.0374677,2476.8,2476.7,0.8323]
[1747758269023,4.0374677,2476.8,2476.7,26.0933]
[1747758269224,4.0374677,2476.8,2476.7,25.261]
[1747758269758,4.84494798,2476.8,2476.7,25.261]
[1747758270656,4.0386091,2476.1,2476.0,0.48129944]
[1747758270854,4.0386091,2476.1,2476.0,25.74229944]
[1747758271856,4.0386091,2476.1,2476.0,25.261]
[1747758272039,4.0386091,2476.1,2476.0,25.263]
[1747758272239,4.8463173,2476.1,2476.0,25.263]
[1747758273361,4.0386091,2476.1,2476.0,25.263]
[1747758276850,17.58526544,2476.1,2476.0,25.263]
[1747758277236,17.58526544,2476.1,2475.0,17.427]
[1747758277237,4.04024079,2475.1,2475.0,17.427]
[1747758277440,4.04024079,2475.1,2475.0,25.277]
[1747758280368,5.67927506,2475.1,2475.0,25.277]
[1747758280827,13.67927506,2475.1,2475.0,25.277]
[1747758281546,12.04024079,2475.1,2475.0,25.277]
[1747758283136,12.04024079,2475.1,2475.0,25.377]
[1747758285844,12.85504079,2475.1,2475.0,25.377]
[1747758286048,13.40504079,2475.1,2475.0,17.527]
[1747758286249,13.40504079,2475.1,2475.0,0.1]
[1747758286482,15.61141474,2475.1,2475.0,0.1]
[1747758287254,15.06141474,2475.1,2475.0,0.1]
[1747758288983,15.61141474,2475.1,2475.0,0.1]
[1747758291585,15.8202444,2475.1,2475.0,0.1]
[1747758291769,15.8202444,2475.1,2473.5,17.441]
[1747758291770,4.04271508,2473.6,2473.5,17.441]
[1747758291971,4.0439987,2472.8,2472.7,6.26666851]
[1747758292172,4.04387161,2472.9,2472.8,0.8082]
[1747758292485,4.04387161,2472.9,2472.8,8.8082]
[1747758292684,4.04387161,2472.9,2472.8,16.6632]
[1747758292990,4.04387161,2472.9,2472.8,8.6632]
[1747758293190,4.04387161,2472.9,2472.8,16.6632]
[1747758294266,4.04387161,2472.9,2472.8,8.6632]
[1747758295863,4.04387161,2472.9,2472.8,8.6652]
[1747758296065,4.0439987,2472.8,2472.7,17.441]
[1747758296264,4.0439987,2472.8,2472.7,25.298]
[1747758296650,4.04530744,2472.0,2471.9,18.2569]
[1747758296856,4.04530744,2472.0,2471.9,25.304]
[1747758297260,4.04530744,2472.0,2471.9,17.447]
[1747758297455,4.04530744,2472.0,2471.9,25.304]
[1747758297988,4.44816454,2472.0,2471.9,25.304]
[1747758298387,4.04530744,2472.0,2471.9,25.304]
[1747758298591,5.34185353,2472.0,2471.9,25.304]
[1747758299198,4.04530744,2472.0,2471.9,25.304]
[1747758299700,4.43995864,2472.0,2471.9,17.447]
[1747758299909,5.24105864,2472.0,2471.9,7.859]
[1747758300194,7.54602548,2472.0,2471.9,7.859]
[1747758300398,4.04645328,2471.3,2471.2,17.453]
[1747758300585,4.04645328,2471.3,2471.2,25.312]
[1747758303157,4.04645328,2471.3,2471.2,26.1403]
[1747758303871,4.04645328,2471.3,2471.2,26.1433]
[1747758304274,4.04645328,2471.3,2471.2,25.315]
[1747758304471,4.74501997,2471.3,2471.2,17.453]
[1747758304692,4.74501997,2471.3,2471.2,25.316]
[1747758307902,5.29501997,2471.3,2471.2,25.316]
[1747758308065,5.29501997,2471.3,2470.8,0.005]
[1747758308066,4.04710834,2470.9,2470.8,0.005]
[1747758308267,4.0482552,2470.2,2470.1,0.005]
[1747758308475,22.06021154,2470.2,2470.1,0.005]
[1747758308801,4.05022276,2469.0,2468.9,0.48129944]
[1747758309007,4.05022276,2469.0,2468.9,8.34529944]
[1747758309876,4.05022276,2469.0,2468.9,0.48129944]
[1747758310270,14.1174961,2469.0,2468.9,0.48129944]
[1747758310478,4.05022276,2469.0,2468.9,0.48129944]
[1747758310904,4.05055087,2468.8,2468.7,0.7885]
[1747758311098,4.05055087,2468.8,2468.7,18.2595]
[1747758311302,4.05055087,2468.8,2468.7,26.1275]
[1747758311768,4.04907478,2469.7,2468.7,34.1275]
[1747758311974,3.93290597,2468.9,2468.8,11.41275]
[1747758312169,4.04850088,2470.1,2469.0,4.0549572]
[1747758312386,4.04809132,2470.3,2469.2,0.8149]
[1747758312566,4.04940271,2469.5,2469.4,0.8149]
[1747758312772,0.8145,2471.4,2469.9,0.8149]
[1747758312995,4.04841909,2470.1,2470.0,17.471]
[1747758313306,4.04690737,2471.1,2470.0,35.86549]
[1747758313505,4.04694455,2471.0,2470.1,8.7798]
[1747758313804,4.04694455,2471.0,2470.1,8.0]
[1747758313990,4.04694455,2471.0,2470.3,0.8033]
[1747758314194,4.04792746,2470.4,2470.3,0.8033]
[1747758314601,4.04792746,2470.4,2470.3,8.155]
[1747758315104,4.04841909,2470.1,2470.0,18.2743]
[1747758315304,4.0482552,2470.2,2470.1,8.0]
[1747758315485,4.0482552,2470.2,2470.1,16.88273888]
[1747758315681,4.0482552,2470.2,2470.1,11.90236288]
[1747758316306,4.0482552,2470.2,2470.1,16.155]
[1747758316889,4.0482552,2470.2,2470.1,18.592477]
[1747758317091,4.04696109,2471.0,2470.6,0.7868]
[1747758317284,4.04743594,2470.7,2470.6,0.7868]
[1747758317613,4.04743594,2470.7,2470.6,8.9418]
[1747758317997,4.04743594,2470.7,2470.6,16.9418]
[1747758318202,4.04743594,2470.7,2470.6,18.63598]
[1747758318600,4.04461985,2472.5,2470.7,8.0]
[1747758318781,4.04727213,2470.8,2470.7,8.0]
[1747758318977,4.04710834,2470.9,2470.8,8.0]
[1747758319185,4.04710834,2470.9,2470.8,25.473]
[1747758319381,4.04563476,2471.8,2470.8,25.473]
[1747758319382,4.04696984,2471.0,2470.8,39.96422203]
[1747758319579,4.04696984,2471.0,2470.9,0.8259]
[1747758320102,0.33665679,2471.0,2470.9,20.19609415]
[1747758320316,0.33665679,2471.0,2470.9,12.155626]
[1747758320618,4.0459882,2471.6,2471.2,0.8142]
[1747758320916,4.04612583,2471.5,2471.4,0.8039]
[1747758321088,4.04612583,2471.5,2471.4,7.38399]
[1747758321418,4.04612583,2471.5,2471.4,8.9579]
[1747758322616,4.04612583,2471.5,2471.4,8.154]
[1747758323602,4.04661702,2471.2,2471.1,0.7677]
[1747758323805,4.04710834,2470.9,2470.8,17.473]
[1747758324005,4.04710834,2470.9,2470.8,25.626]
[1747758324879,4.04710834,2470.9,2470.8,26.3937]
[1747758325807,4.04710834,2470.9,2470.8,29.03307]
[1747758326122,4.04710834,2470.9,2470.8,40.362796]
[1747758326310,4.04572262,2471.8,2471.0,0.7873]
[1747758326640,4.80697694,2472.2,2471.0,0.7873]
[1747758326641,4.04669281,2471.2,2471.0,0.7873]
[1747758326786,4.04669281,2471.2,2471.1,11.329726]
[1747758326989,4.04669281,2471.2,2471.1,8.783635]
[1747758327208,4.04678078,2471.1,2471.0,0.7873]
[1747758327525,4.04678078,2471.1,2471.0,8.9403]
[1747758327694,4.04678078,2471.1,2471.0,18.078034]
[1747758327902,4.04678078,2471.1,2471.0,8.9403]
[1747758328109,4.04678078,2471.1,2471.0,20.7408315]
[1747758328432,12.04546449,2472.0,2471.0,20.7408315]
[1747758328433,4.04547109,2471.9,2471.0,19.6138575]
[1747758328585,4.04672149,2471.2,2471.0,11.9339275]
[1747758328787,4.04672149,2471.2,2471.1,11.329726]
[1747758329230,4.0464327,2471.4,2471.1,11.329726]
[1747758329432,4.04645328,2471.3,2471.2,1.50136853]
[1747758329596,4.04637002,2471.4,2471.2,12.83109453]
[1747758329792,4.04637002,2471.4,2471.3,11.329726]
[1747758330010,0.7978,2472.5,2471.5,0.8313]
[1747758330345,0.7978,2472.9,2471.9,0.8313]
[1747758330640,4.04508951,2472.2,2472.1,0.8313]
[1747758330808,4.04508951,2472.2,2472.1,21.60117433]
[1747758331008,4.04508951,2472.2,2472.1,0.8313]
[1747758331449,4.04508951,2472.2,2472.1,8.9823]
[1747758332016,4.04508951,2472.2,2472.1,18.906984]
[1747758332306,4.04508951,2472.2,2472.1,19.141302]
[1747758332543,4.04489281,2472.3,2472.1,19.47898356]
[1747758332742,4.04489281,2472.3,2472.2,15.36219227]
[1747758333141,4.04328845,2473.3,2472.2,15.36219227]
[1747758333308,4.04465296,2472.4,2472.3,1.68625425]
[1747758333510,4.51717284,2474.3,2472.5,0.55]
[1747758333511,4.0441777,2472.7,2472.5,0.55]
[1747758333778,4.0441777,2472.7,2472.6,21.16693928]
[1747758333912,4.0441777,2472.7,2472.6,12.19145328]
[1747758334113,4.0441777,2472.7,2472.6,14.01699861]
[1747758334342,4.0441777,2472.7,2472.6,5.86599861]
[1747758334536,4.0441777,2472.7,2472.6,9.28621328]
[1747758334856,4.0441777,2472.7,2472.6,15.58701328]
[1747758335449,4.0441777,2472.7,2472.6,14.35959328]
[1747758336516,4.0441777,2472.7,2472.6,11.71845828]
[1747758336733,4.0441777,2472.7,2472.6,9.28621328]
[1747758338336,4.0441777,2472.7,2472.6,10.82113461]
[1747758339040,4.04416225,2472.7,2472.6,11.37113461]
[1747758339242,4.04416225,2472.7,2472.6,7.11098461]
[1747758339439,4.04416225,2472.7,2472.6,19.78806328]
[1747758340367,4.04416225,2472.7,2472.6,5.57606328]
[1747758340568,4.04416225,2472.7,2472.6,12.44918428]
[1747758340726,4.04416225,2472.7,2472.6,9.28421328]
[1747758341068,4.04416225,2472.7,2472.6,15.73565828]
[1747758341366,4.04416225,2472.7,2472.6,9.28421328]
[1747758342070,4.04416225,2472.7,2472.6,0.33761328]
[1747758342266,4.85298175,2472.7,2472.6,0.33761328]
[1747758342425,4.85298175,2472.7,2472.6,8.48561328]
[1747758344065,4.04416225,2472.7,2472.6,8.48561328]
[1747758348871,12.04416225,2472.7,2472.6,8.48561328]
[1747758350585,12.04416225,2472.7,2472.6,0.33761328]
[1747758350870,12.04416225,2472.7,2472.6,8.51861328]
[1747758351385,12.04416225,2472.7,2471.9,0.822]
[1747758351386,4.04530744,2472.0,2471.9,0.822]
[1747758351554,12.04530744,2472.0,2471.9,25.64]
[1747758354253,4.04530744,2472.0,2471.9,40.291426]
[1747758354658,4.04530744,2472.0,2471.9,25.64]
[1747758355153,12.04530744,2472.0,2471.9,25.64]
[1747758359352,12.04530744,2472.0,2471.9,17.459]
[1747758359683,12.04530744,2472.0,2471.9,25.641]
[1747758360274,12.04530744,2472.0,2471.9,17.459]
[1747758360474,13.73367436,2472.0,2471.9,25.641]
[1747758360883,12.04530744,2472.0,2471.9,25.641]
[1747758362561,12.04530744,2472.0,2471.9,17.459]
[1747758362781,12.84050744,2472.0,2471.9,25.641]
[1747758365604,12.04530744,2472.0,2471.9,25.641]
[1747758366772,12.04530744,2472.0,2471.9,17.459]
[1747758366972,13.65435436,2472.0,2471.9,25.642]
[1747758367779,12.04530744,2472.0,2471.9,25.642]
[1747758369790,12.04530744,2472.0,2471.9,17.459]
[1747758370094,12.04530744,2472.0,2471.9,25.642]
[1747758372308,12.04530744,2472.0,2471.9,17.459]
[1747758372600,12.04530744,2472.0,2471.9,25.642]
[1747758372806,13.65435436,2472.0,2471.9,25.642]
[1747758372983,14.43925436,2472.0,2471.9,25.642]
[1747758373403,4.04678078,2471.1,2471.0,0.48129944]
[1747758373607,12.04678078,2471.1,2471.0,26.12729944]
[1747758374517,12.86898078,2471.1,2471.0,25.584]
[1747758374675,14.56054452,2471.1,2471.0,25.584]
[1747758376111,14.56054452,2471.1,2471.0,17.463]
[1747758376280,14.56054452,2471.1,2471.0,25.584]
[1747758376481,15.11054452,2471.1,2471.0,25.584]
[1747758376913,14.56054452,2471.1,2471.0,25.584]
[1747758377120,12.86898078,2471.1,2471.0,25.584]
[1747758377299,12.04678078,2471.1,2471.0,25.584]
[1747758377677,4.04874691,2469.9,2469.8,0.4053524]
[1747758377977,12.04874691,2469.9,2469.8,12.04493]
[1747758378174,12.04874691,2469.9,2469.8,14.077286]
[1747758378395,4.04874691,2469.9,2469.8,14.077286]
[1747758379016,4.04874691,2469.9,2469.8,20.141286]
[1747758379231,4.04831084,2470.2,2469.8,23.45300131]
[1747758379395,4.04874691,2469.9,2469.8,17.15971928]
[1747758379596,3.91528816,2470.0,2469.9,11.329726]
[1747758379908,4.04871355,2470.0,2469.9,11.329726]
[1747758380212,4.04871355,2470.0,2469.9,7.94036153]
[1747758380419,4.04871355,2470.0,2469.9,7.69585253]
[1747758380778,4.04871355,2470.0,2469.9,8.52095253]
[1747758381181,4.04858299,2470.0,2469.9,8.52095253]
[1747758381489,4.0482552,2470.2,2470.1,0.7894]
[1747758381689,4.0482552,2470.2,2470.1,6.95894525]
[1747758381913,4.04776361,2470.5,2470.1,11.24224525]
[1747758382112,4.0482552,2470.2,2470.1,1.69292525]
[1747758382278,4.0482552,2470.2,2470.1,12.119126]
[1747758382480,4.04660992,2471.3,2470.1,12.119126]
[1747758382481,4.04802861,2470.4,2470.2,0.55]
[1747758382707,4.04802861,2470.4,2470.3,8.9134]
[1747758382947,4.04777846,2470.5,2470.3,19.483057]
[1747758382948,4.04785779,2470.5,2470.3,19.483057]
[1747758383119,4.04747631,2470.7,2470.5,0.7894]
[1747758383320,4.04716737,2470.9,2470.6,12.5416386]
[1747758383524,4.04727213,2470.8,2470.7,12.119126]
[1747758383859,4.04710834,2470.9,2470.8,0.55]
[1747758384018,4.04727213,2470.8,2470.7,0.7894]
[1747758384219,4.04727213,2470.8,2470.7,17.705314]
[1747758384423,4.04727213,2470.8,2470.7,22.0136574]
[1747758384634,4.04717194,2470.9,2470.7,22.0136574]
[1747758384812,4.0470198,2471.0,2470.8,11.879726]
[1747758385014,4.04694455,2471.0,2470.9,12.145826]
[1747758385320,4.04694455,2471.0,2470.9,7.547301]
[1747758385522,4.04694455,2471.0,2470.9,9.8083911]
[1747758385927,4.04694455,2471.0,2470.9,6.1672461]
[1747758386127,4.04694455,2471.0,2470.9,12.580156]
[1747758386325,12.04694455,2471.0,2470.9,10.971004]
[1747758386754,4.04694455,2471.0,2470.9,10.154904]
[1747758387052,12.04694455,2471.0,2470.9,8.124]
[1747758392272,12.04727213,2470.8,2470.7,17.469]
[1747758392470,14.88480822,2470.8,2470.7,25.593]
[1747758394475,6.88480822,2470.8,2470.7,25.593]
[1747758394848,6.88480822,2470.8,2470.7,25.594]
[1747758396280,4.04727213,2470.8,2470.7,25.594]
[1747758400967,4.84177213,2470.8,2470.7,25.594]
[1747758401539,12.84177213,2470.8,2470.7,25.594]
[1747758404778,25.99177213,2470.8,2470.7,25.594]
[1747758404972,4.04940271,2469.5,2469.4,0.48129944]
[1747758405285,4.04940271,2469.5,2469.4,34.05329944]
[1747758405471,4.04940271,2469.5,2469.4,26.84119944]
[1747758405786,4.04940271,2469.5,2469.4,26.3599]
[1747758405987,4.04940271,2469.5,2469.4,29.03456176]
[1747758407693,4.04940271,2469.5,2469.4,40.36428776]
[1747758407903,4.04940271,2469.5,2469.4,45.42425476]
[1747758408113,4.04940271,2469.5,2469.4,40.43846476]
[1747758408764,4.04940271,2469.5,2469.4,43.10256176]
[1747758409103,4.04940271,2469.5,2469.4,46.89370576]
[1747758409962,4.04940271,2469.5,2469.4,47.27980477]
[1747758410464,4.04795338,2470.4,2469.5,8.0]
[1747758410668,4.04795338,2470.4,2469.4,46.49190477]
[1747758410669,4.04907478,2469.7,2469.6,4.42950427]
[1747758410982,4.04900441,2469.8,2469.7,8.0]
[1747758411206,4.04900441,2469.8,2469.7,20.103326]
[1747758411366,4.04900441,2469.8,2469.7,18.92629]
[1747758411565,4.04900441,2469.8,2469.7,18.52586943]
[1747758411766,4.04900441,2469.8,2469.7,14.92586943]
[1747758412685,4.04900441,2469.8,2469.7,15.31187215]
[1747758412998,4.04900441,2469.8,2469.7,11.41782215]
[1747758413410,4.04900441,2469.8,2469.7,22.74754815]
[1747758413864,4.04900441,2469.8,2469.7,22.36154543]
[1747758414063,4.04883384,2469.9,2469.8,8.0]
[1747758414267,4.04727213,2470.8,2469.9,0.55]
[1747758414478,4.04805916,2470.4,2470.1,0.7665]
[1747758414673,4.04805916,2470.4,2470.2,6.92275675]
[1747758414896,4.04805916,2470.4,2470.3,6.83813]
[1747758415103,0.7957,2471.2,2470.3,31.65137207]
[1747758415276,0.7957,2471.8,2470.7,0.7665]
[1747758415479,4.04688025,2471.1,2470.9,8.778]
[1747758415673,4.04693242,2471.1,2471.0,8.0]
[1747758416001,4.04693242,2471.1,2471.0,8.38609065]
[1747758416209,4.04693242,2471.1,2471.0,10.44292285]
[1747758417200,4.04693242,2471.1,2471.0,8.48709065]
[1747758417985,4.04693242,2471.1,2471.0,16.48709065]
[1747758419107,4.04693242,2471.1,2471.0,16.1]
[1747758419469,4.04693242,2471.1,2471.0,8.0]
[1747758419667,4.04693242,2471.1,2471.0,8.1]
[1747758420293,4.04693242,2471.1,2471.0,29.869126]
[1747758420495,4.04693242,2471.1,2471.0,28.088388]
[1747758420796,4.04693242,2471.1,2471.0,16.1]
[1747758422012,4.04592249,2471.7,2471.2,0.8261]
[1747758422317,4.04628955,2471.4,2471.3,17.51145795]
[1747758422530,4.04620946,2471.5,2471.3,32.000014]
[1747758422709,4.04620946,2471.5,2471.4,3.2826114]
[1747758423966,4.04620946,2471.5,2471.4,8.0]
[1747758424095,4.04479727,2472.4,2471.4,8.0]
[1747758424096,4.04448938,2472.5,2471.5,8.7565]
[1747758424431,4.04579843,2471.7,2471.6,16.099]
[1747758424794,4.04566855,2471.8,2471.7,8.0]
[1747758424795,4.04572606,2471.8,2471.7,8.0]
[1747758424994,4.04554562,2471.9,2471.8,0.7939]
[1747758425199,4.04554562,2471.9,2471.8,14.8230809]
[1747758425394,4.04530824,2472.0,2471.8,22.8230809]
[1747758425616,4.04530824,2472.0,2471.9,8.956679]
[1747758425899,4.04515535,2472.1,2472.0,8.0]
[1747758426092,4.04515535,2472.1,2472.0,19.329726]
[1747758426338,0.7757,2472.9,2472.0,19.329726]
[1747758426339,4.04489613,2472.3,2472.1,1.3169]
[1747758426501,4.04498017,2472.2,2472.1,1.3169]
[1747758426693,4.04498017,2472.2,2472.1,26.8839]
[1747758426902,4.04498017,2472.2,2472.1,32.9489]
[1747758428162,4.04498017,2472.2,2472.1,25.566]
[1747758430211,4.04498017,2472.2,2472.1,25.565]
[1747758430736,4.93076308,2472.2,2472.1,17.469]
[1747758431052,4.04498017,2472.2,2472.1,25.565]
[1747758431750,4.04498017,2472.2,2472.1,17.469]
[1747758432056,4.81078017,2472.2,2472.1,25.565]
[1747758432350,4.04498017,2472.2,2472.1,25.565]
[1747758433712,4.04498017,2472.2,2472.1,30.7042]
[1747758433917,4.85318262,2473.3,2472.3,0.7892]
[1747758434112,4.04465296,2472.4,2472.3,1.3392]
[1747758434315,4.04448938,2472.5,2472.4,8.0]
[1747758434553,4.04448938,2472.5,2472.4,19.879726]
[1747758434857,4.04448938,2472.5,2472.4,21.54079996]
[1747758436313,4.04448938,2472.5,2472.4,19.92614096]
[1747758436515,4.04448938,2472.5,2472.4,1.66107396]
[1747758436831,4.04448938,2472.5,2472.4,16.086]
[1747758437348,4.04465296,2472.4,2472.3,0.7892]
[1747758437528,4.04465296,2472.4,2472.3,8.086]
[1747758437724,4.04498017,2472.2,2472.1,28.53942]
[1747758437925,4.04498017,2472.2,2472.1,36.62542]
[1747758439153,4.04498017,2472.2,2472.1,36.96310156]
[1747758439454,4.82028017,2472.2,2472.1,17.80668156]
[1747758439630,4.82028017,2472.2,2472.1,25.89268156]
[1747758440220,4.04498017,2472.2,2472.1,25.89268156]
[1747758440449,12.82028017,2472.2,2472.1,25.89268156]
[1747758440628,12.82028017,2472.2,2472.1,25.555]
[1747758441025,14.91125868,2472.2,2472.1,17.469]
[1747758441354,14.91125868,2472.2,2472.1,25.555]
[1747758444784,12.82028017,2472.2,2472.1,25.556]
[1747758446363,4.82028017,2472.2,2472.1,25.556]
[1747758448171,12.82028017,2472.2,2472.1,25.556]
[1747758449366,12.82028017,2472.2,2472.1,17.469]
[1747758449573,14.91125868,2472.2,2472.1,25.556]
[1747758452390,4.82028017,2472.2,2472.1,25.556]
[1747758452609,4.04498017,2472.2,2472.1,25.556]
[1747758453391,4.04498017,2472.2,2472.1,17.469]
[1747758453677,4.04498017,2472.2,2472.1,25.557]
[1747758455363,4.04498017,2472.2,2472.1,17.469]
[1747758455563,5.25842868,2472.2,2472.1,25.557]
[1747758455783,4.04498017,2472.2,2472.1,25.557]
[1747758461861,4.04498017,2472.2,2472.1,17.469]
[1747758462061,4.04498017,2472.2,2472.1,25.556]
[1747758465420,4.04498017,2472.2,2472.1,17.469]
[1747758465592,12.81648017,2472.2,2472.1,25.556]
[1747758465789,14.90707868,2472.2,2472.1,25.556]
[1747758465987,4.79822583,2471.5,2471.4,17.463]
[1747758466196,12.79822583,2471.5,2471.4,25.55]
[1747758468218,12.79822583,2471.5,2471.4,17.463]
[1747758468381,12.79822583,2471.5,2471.4,25.465]
[1747758468896,14.48264828,2471.5,2471.4,25.465]
[1747758469282,14.48264828,2471.5,2471.4,17.463]
[1747758469493,14.48264828,2471.5,2471.4,25.465]
[1747758473581,12.79822583,2471.5,2471.4,25.465]
[1747758474121,12.79822583,2471.5,2471.4,17.463]
[1747758474527,12.79822583,2471.5,2471.4,25.466]
[1747758475225,12.04612583,2471.5,2471.4,25.466]
[1747758477528,12.04612583,2471.5,2471.4,17.463]
[1747758477709,14.75610828,2471.5,2471.4,25.467]
[1747758478632,14.75610828,2471.5,2471.4,17.463]